Cogmind - Beta 11.1 @@@ ROGUE MODE // 2022.05.25 @ 20:12:50 Player: SC1ENCE Result: Destroyed self with Improved Grenade Launcher Performance ------------- Evolutions (1) 500 Regions Visited (2) 400 Robots Destroyed (39) 195 Value Destroyed (856) 856 Prototype IDs (3) 60 Alien Tech Used (0) 0 Bonus (0) 0 TOTAL SCORE: 2011 Bonus ------- None Cogmind --------- Core Integrity 0/400 Matter 177/300 Energy 223/240 System Corruption 0% Temperature Cool (0) Movement Walking (470) Ox5 Location -9/Materials Parts ------- > --- POWER (1) -------- Nuclear Core > --- PROPULSION (3) --- Aluminum Leg > --- UTILITY (2) ------ High-capacity Storage Unit Hardened Light Armor Plating > --- WEAPON (3) ------- Light Assault Rifle Improved Grenade Launcher > --- INVENTORY (20) --- Nuclear Core Nuclear Core Aluminum Leg High-capacity Storage Unit High-capacity Storage Unit ECM Suite Improved Grenade Launcher Improved Grenade Launcher Improved Grenade Launcher Flail Mining Claw Mining Claw Peak State ------------ > --- POWER ------------ Nuclear Core > --- PROPULSION ------- Aluminum Leg Aluminum Leg Aluminum Leg > --- UTILITY ---------- High-capacity Storage Unit Visual Processing Unit > --- WEAPON ----------- Advanced Beam Cannon Improved Assault Rifle Improved Grenade Launcher > --- INVENTORY -------- Nuclear Core Nuclear Core Nuclear Core Aluminum Leg Aluminum Leg Aluminum Leg High-capacity Storage Unit High-capacity Storage Unit ECM Suite Hardened Light Armor Plating Spread Laser Light Assault Rifle Improved Grenade Launcher Improved Grenade Launcher Improved Grenade Launcher Flail Mining Claw Mining Claw [Rating: 21] Favorites ----------- Power Heavy Ion Engine Engine Heavy Ion Engine Power Core Nuclear Core Propulsion Aluminum Leg Leg Aluminum Leg Utility Small Storage Unit Device Improved Terrain Scanner Storage Small Storage Unit Processor Visual Processing Unit Protection Hardened Light Armor Plating Weapon Light Assault Rifle Energy Gun EM Shotgun Energy Cannon Advanced Beam Cannon Ballistic Gun Light Assault Rifle Launcher Improved Grenade Launcher Special Weapon Mining Laser Impact Weapon Flail Build | -11 -10 -9 ------- Run | Scr Mat Mat Slots Evolved 2 | . . 2 Power . | . . . Propulsion 1 | . . 1 Utility . | . . . Weapon 1 | . . 1 Parts Attached 37 | 7 . 30 Power 6 | 1 . 5 Engine 3 | 1 . 2 Core 3 | . . 3 Reactor . | . . . Propulsion 10 | 2 . 8 Treads . | . . . Leg 10 | 2 . 8 Wheel . | . . . Hover . | . . . Flight . | . . . Utility 6 | 2 . 4 Device 1 | 1 . . Storage 3 | 1 . 2 Processor 1 | . . 1 Hackware . | . . . Protection 1 | . . 1 Artifact . | . . . Weapon 15 | 2 . 13 Energy Gun 3 | . . 3 Energy Cannon 1 | . . 1 Ballistic Gun 6 | 1 . 5 Ballistic Cannon . | . . . Launcher 2 | . . 2 Special Weapon 1 | 1 . . Impact Weapon 2 | . . 2 Slashing Weapon . | . . . Piercing Weapon . | . . . Special Melee Weapon . | . . . Unidentified Prototypes 3 | . . 3 Parts Lost 10 | . . 10 Power 1 | . . 1 Propulsion 5 | . . 5 Utility 1 | . . 1 Weapon 3 | . . 3 Highest Loss Streak 9 | . . 9 To Critical Strikes . | . . . Average Slot Usage (%) 98 | . 100 98 Engine 8 | . 14 8 Core 2 | . . 2 Leg 31 | . 28 32 Device 5 | . 14 4 Storage 11 | . 14 11 Processor 5 | . . 6 Energy Gun 5 | . . 5 Energy Cannon 2 | . . 2 Ballistic Gun 18 | . 14 18 Launcher 1 | . . 1 Special Weapon 2 | . 14 . Impact Weapon 2 | . . 3 Naked Turns . | . . . Heaviest Build 60 | 11 11 60 Greatest Support 30 | 20 20 30 Greatest Overweight (x) 17 | 1 . 17 Average Overweight (x) . | . . . Largest Inventory Capacity 20 | 8 8 20 Average Capacity 11 | 7 8 11 Most Carried 18 | 6 8 18 Average Carried 9 | 3 7 10 Final Capacity 20 | 8 8 20 Final Carried 12 | 6 8 12 Class Distribution -------------------- 54% | Mutant 45% | Skirmisher Dominant Class ---------------- Mutant | -10/Materials Skirmisher | -9/Materials Resources | -11 -10 -9 ----------- Run | Scr Mat Mat Matter Collected 776 | 271 . 505 Remotely . | . . . Salvage Created 1352 | 108 . 1244 Parts 91 | 5 3 83 Haulers Intercepted 4 | . . 4 Recyclers Shooed . | . . . Parts Field Recycled . | . . . Retrieved Matter . | . . . Parts Self-Destructed . | . . . Prevented . | . . . Kills | -11 -10 -9 ------- Run | Scr Mat Mat Combat Hostiles Destroyed 23 | . . 23 Guns 17 | . . 17 Cannons 3 | . . 3 AOE 3 | . . 3 Classes Destroyed 10 | 2 . 8 Worker 3 | . . 3 Builder 2 | . . 2 Tunneler 2 | 1 1 . Hauler 4 | . . 4 Recycler 1 | 1 . . Watcher 4 | . . 4 Swarmer 6 | . . 6 Grunt 8 | . . 8 Brawler 1 | . . 1 Sentry 8 | . . 8 Best Kill Streak 4 | 1 1 4 Combat Bots Only 3 | . . 3 Max Kills in Single Turn 2 | 1 1 2 Gunslinging . | . . . Exploded 2 | . . 2 Melee . | . . . Uniques/NPCs Destroyed . | . . . Combat | -11 -10 -9 -------- Run | Scr Mat Mat Damage Taken 1772 | . . 1772 Core 414 | . . 414 Absorbed by Shields . | . . . Core Remaining (%) 100 | 100 100 . Volleys Fired 74 | 7 1 66 Largest 3 | 1 2 3 Hottest 160 | 20 120 160 Shots Fired 177 | 7 2 168 Gun 158 | 7 1 150 Cannon 15 | . . 15 Launcher 2 | . . 2 Special 2 | . 1 1 Kinetic 122 | 7 1 114 Thermal 27 | . 1 26 Explosive 2 | . . 2 Electromagnetic 26 | . . 26 Robot Hit Streak 11 | 6 1 11 Robot Miss Streak 5 | 1 2 5 Penetration Max . | . . . Secondary Targets 2 | . . 2 Max Gunslinging Chain 1 | . . 1 Shots Hit Robots 114 | 6 1 107 Core Hits 70 | 5 1 64 Critical Kills . | . . . Critical Parts Destroyed 1 | . . 1 Critical Strikes 1 | . . 1 Destroy 1 | . . 1 Melee Attacks 2 | . . 2 Impact 2 | . . 2 Slashing . | . . . Piercing . | . . . Sneak Attacks 1 | . . 1 Combat Hostiles . | . . . Follow-up Attacks . | . . . Damage Inflicted 1927 | 48 33 1846 Guns 1366 | 48 9 1309 Cannons 184 | . . 184 Explosions 211 | . . 211 Melee 131 | . . 131 Ramming 11 | . . 11 Kinetic 982 | 48 9 925 Thermal 466 | . 24 442 Explosive 99 | . . 99 Electromagnetic 238 | . . 238 Impact 131 | . . 131 Slashing . | . . . Piercing . | . . . Highest Corruption . | . . . Average Corruption . | . . . Corruption Purged . | . . . Corruption Blocked . | . . . Overload Shots . | . . . Overflow Damage 127 | . . 127 Projectiles . | . . . Explosions 43 | . . 43 Melee 84 | . . 84 Knockbacks . | . . . Impact . | . . . Kinetic . | . . . Secondary . | . . . Self-Inflicted Damage 90 | . . 90 Shots 2 | . . 2 Rammed . | . . . Targets Rammed 2 | . . 2 Kicked 2 | . . 2 Crushed . | . . . Highest Temperature 774 | . 40 774 Average Temperature 135 | . 20 138 Received Heat Transfer 729 | . . 729 Effects 23 | . . 23 Shutdowns 1 | . . 1 Energy Bleed 2 | . . 2 Interference 5 | . . 5 Matter Decay 2 | . . 2 Short Circuit 4 | . . 4 Damage (minor) 2 | . . 2 Damage (major) 6 | . . 6 Damage (core) 1 | . . 1 Siege Activations . | . . . Robots Corrupted . | . . . Combat Hostiles . | . . . Parts Fried . | . . . Impact Corruptions 2 | . . 2 Robots Melted . | . . . Combat Hostiles . | . . . Parts Melted . | . . . Heat Transferred 718 | . 50 668 Parts Sabotaged . | . . . Parts Stolen . | . . . Parts Stripped . | . . . Power Chain Reactions 3 | . . 3 Missiles Intercepted . | . . . Alert | -11 -10 -9 ------- Run | Scr Mat Mat Peak Influence 390 | 10 11 390 Initial 6 | . 6 4 Average 152 | 5 6 177 Maximum Alert Level 1 | . . 1 Low Security (%) 59 | 100 100 52 Level 1 40 | . . 47 Level 2 . | . . . Level 3 . | . . . Level 4 . | . . . Level 5 . | . . . High Security . | . . . Max Security . | . . . Squads Dispatched 1 | . . 1 Investigation . | . . . Extermination . | . . . Reinforcement 1 | . . 1 Assault . | . . . Garrison . | . . . Intercept . | . . . Searches Triggered . | . . . Construction Impeded . | . . . Haulers Reinforced . | . . . Active Scanning Responses . | . . . Cargo Convoy Interrupts . | . . . Stealth | -11 -10 -9 --------- Run | Scr Mat Mat Distress Signals 1 | . . 1 Communications Jammed . | . . . Distress Signals . | . . . Times Spotted 34 | . . 34 Peak Tracking Total 4 | . 1 4 Tactical Retreats 1 | . . 1 Traps | -11 -10 -9 ------- Run | Scr Mat Mat Traps Triggered . | . . . Indirectly . | . . . Trap Hack Attempts . | . . . Triggered . | . . . Disarmed . | . . . Reprogrammed . | . . . Reused . | . . . Traps Extracted . | . . . Installed . | . . . Triggered . | . . . Machines | -11 -10 -9 ---------- Run | Scr Mat Mat Machines Disabled 1 | . . 1 Max in Single Turn 1 | . . 1 Machines Sabotaged . | . . . Garrisons Compromised . | . . . Overloaded Fab Kills . | . . . Hacking | -11 -10 -9 --------- Run | Scr Mat Mat Machines Accessed . | . . . Terminals . | . . . Fabricators . | . . . Repair Stations . | . . . Recycling Units . | . . . Scanalyzers . | . . . Garrison Access . | . . . Total Hacks . | . . . Successful . | . . . Failed . | . . . Catastrophic . | . . . Database Lockouts . | . . . Manual . | . . . Terminals . | . . . Fabricators . | . . . Repair Stations . | . . . Recycling Units . | . . . Scanalyzers . | . . . Garrison Access . | . . . Terminal Hacks . | . . . Fabricator Hacks . | . . . Repair Station Hacks . | . . . Recycling Unit Hacks . | . . . Scanalyzer . | . . . Garrison Access Hacks . | . . . Unauthorized Hacks . | . . . Terminals . | . . . Fabricators . | . . . Repair Stations . | . . . Recycling Units . | . . . Scanalyzers . | . . . Garrison Access . | . . . Data Cores Recovered . | . . . Used . | . . . Hacking Detections . | . . . Full Trace Events . | . . . Feedback Events . | . . . Feedback Blocked . | . . . Robot Schematics Acquired . | . . . Robots Built . | . . . Authchips . | . . . Time . | . . . Total Robot Build Rating . | . . . Part Schematics Acquired . | . . . Parts Built . | . . . Authchips . | . . . Time . | . . . Total Part Build Rating . | . . . Parts Repaired . | . . . Time . | . . . Parts Recycled . | . . . Recycled Matter . | . . . Retrieved Matter . | . . . Retrieved Components . | . . . Parts Scanalyzed . | . . . Part Schematics Acquired . | . . . Parts Damaged . | . . . Bothacking | -11 -10 -9 ------------ Run | Scr Mat Mat Used RIF Installer . | . . . Robots Hacked . | . . . Non-combat . | . . . Combat . | . . . Robot Hacks Applied . | . . . Relay Couplers Released . | . . . Fabnet Peak Effective % . | . . . Robots Rewired . | . . . Allies Hacked . | . . . Hacks Repelled . | . . . Allies | -11 -10 -9 -------- Run | Scr Mat Mat Total Allies . | . . . Largest Group . | . . . Highest-Rated Group . | . . . Highest-Rated Ally . | . . . Total Orders . | . . . Ally Attacks . | . . . Total Damage . | . . . Kills . | . . . Allies Corrupted . | . . . Allies Melted . | . . . Intel | -11 -10 -9 ------- Run | Scr Mat Mat Robot Analysis Total . | . . . Derelict Logs Recovered . | . . . Drone Launches . | . . . Drone Recoveries . | . . . Exploration | -11 -10 -9 ------------- Run | Scr Mat Mat Turns Passed 1591 | 83 153 1355 Spaces Moved 907 | 49 119 739 Core 12 | 11 . 1 Treads . | . . . Legs 895 | 38 119 738 Wheels . | . . . Hover . | . . . Flight . | . . . Fastest Speed 50 | 50 120 120 Average Speed 131 | 112 120 134 Slowest Speed 900 | 120 120 900 Overloaded Moves . | . . . Propulsion Burnouts . | . . . Robots Hopped . | . . . Cave-ins Triggered . | . . . Exploration Rate (%) 27 | 4 25 54 Regions Visited 2 Branch Regions . Pre-discovered Areas . | . . . Known Exits Taken . | . . . Unknown Exits Taken 2 | 1 1 . Scrap Searched . | . . . Spaces Dug . | . . . Terrain Destroyed 18 | . . 18 Melee . | . . . Projectile . | . . . AOE 18 | . . 18 Terrain Rammed . | . . . Walls Destroyed . | . . . Machines Disabled . | . . . Actions | -11 -10 -9 --------- Run | Scr Mat Mat Total 1165 | 68 126 971 Wait 81 | . 3 78 Move 905 | 48 118 739 Hop . | . . . Pick Up 38 | 6 3 29 Fast Attach 11 | 7 . 4 Attach 11 | . . 11 Detach 2 | . . 2 Swap 15 | . . 15 Drop 24 | . 1 23 Fire 74 | 7 1 66 Melee 2 | . . 2 Ram . | . . . Kick 2 | . . 2 Crush . | . . . Escape Stasis . | . . . Rewire . | . . . Trap . | . . . Miscellaneous . | . . . Route ------- -11/Scrapyard -10/Materials (discovered 2 exits: [*Mat] / [*Min]) -9/Materials (discovered 2 exits: [*Min x2]) History --------- Turn | Location | Event 9 | -11/Scrapyard | Discovered new exit (range 15) 84 | -11/Scrapyard | Entered Materials 123 | -10/Materials | Discovered new exit (range 16) 229 | -10/Materials | Discovered new exit (range 3) 237 | -10/Materials | Entered another Materials area 237 | -9/Materials | Evolved 2 slots: Propulsion x1, Weapon x1 247 | -9/Materials | Discovered new exit (range 14) 533 | -9/Materials | Build established: Skirmisher 1138 | -9/Materials | Build established: Mutant 1246 | -9/Materials | Discovered new exit (range 12) 1542 | -9/Materials | Core integrity fell below 50% 1566 | -9/Materials | Core integrity fell below 20% 1592 | -9/Materials | Destroyed self with Improved Grenade Launcher Last Messages --------------- 01554_ Acquired 24 matter. 01555_ Nuclear Core broken. 01555_ Overheating: Short circuit. 01555_ Broken Aluminum Leg destroyed. 01556_ Overheating: Adv. Beam Cannon damaged (-12). 01556_ Critical hit (Burn: +37). 01557_ Aluminum Leg broken. 01557_ Overheating: Short circuit. 01559_ Broken Aluminum Leg destroyed. 01559_ Imp. Assault Rifle destroyed. 01560_ Overheating: Energy bleed (-12). 01562_ Adv. Beam Cannon destroyed. 01568_ Acquired Aluminum Leg. 01568_ K-01 Serf collects debris. 01572_ Discarded Visual Processing Unit. 01574_ Critical hit (Burn: +37). 01575_ K-01 Serf collects debris. 01592_ Y-45 Defender destroyed. 01592_ Spread Laser destroyed. 01592_ Destroyed Spread Laser. Map ----- +----------------------------------------------------+ | ??#????????##?#""" ##????????????? #???????? | | #????????#????# ]%] #???????????? #???????? | | ??????????????# ] [ #########??"? #???????? | | ??????????????# ] = ##]] #??"" #???????? | | ##????#???????# [! ##]] #?""" ????????? | | #??????############+###### *** #? ?????????? | | ???#???# # #### ##### ### ???? | | ???#???# """"" # = %= ??? | | ???#???# """"" + *% ??? | | ???????# """"" # ! // ??? | | ######?# # ##### ! # ########???? | | #?# """"" ### ###???#/! #?##### ####?? | | "" #?# """"" #?#+####### ### [%! #? | | "" #?# """"" #?# # = + !*"" #? | | "" #?? #?# + % ### ! "" # | | #??#########?# # [=%[ #?# S" # | | "" #????????????######### = #### ### + | | "" #???????????????????# """# + """ # | | "" #???????????????????# "# ### """ # | | #???????????????????# !"# #?# """ #? | | ######?##????????????????# < ""# #?# #? | | ??#?#????????????????????# |"# #?##########?? | | #????????????????????????# ! "# #????????????? | | ?????????????????????????# *"""# #?????????????? | | ????#????????##############[g #### #?????????????? | | ??#??????????# @ g* ##????????????? | | ?????????????# % ????? | | ????#?#??????# * [k ?? | | ????#????????# # ? | | #######??????# ######+####### ## | | #??????##############??????????????#+###???? | | " """ #??#???????????????????????????????????????? | | " """ #??????????????????????????????????????????? | | " """ #??????????????????????????????????????????? | | #??????????????????????????????????????????? | | #???? ?????????????????????????????????????? | | ##????"????????????????????????????????????? | | #?#????????????????????????????????????????? | | +######?????"????????????????????????????????????? | | #???????? ??????????????????????????????????????? | | #???##??????????????????????????????????????????? | | #???????????????????????????????????????????????? | | #???????????? ??????????????????????????????????? | | #############???????????????????????????????????? | | ?????????????????????????????????? | | ?????????????????????????????????? | | ^ ?????????????????????????????????? | | #####+########+??????????????????????????????????? | | #????????????????????????????????????????????? | | """ #????????????????????????????????????????????? | +----------------------------------------------------+ Best States ------------- Heat Dissipation 28 Energy Generation 14 Energy Capacity 280 Matter Stores 300 Matter Capacity 300 Sight Range 18 Terrain Scan Range 16 Terrain Scan Density 10 Armor Coverage 150 Evasion (%) 55 Item Schematics ----------------- None Robot Schematics ------------------ None Fabricated ------------ Nothing Alien Tech Used ----------------- None Achievements -------------- None Challenges ------------ None Game ------ Seed SchematicBombStorage Manual? 0 Play Time 00:22:43 Cumulative 12.5 hours Start 2022.05.25 @ 19:50:59 End 2022.05.25 @ 20:12:50 Sessions 1 Manual Loads 0 Difficulty Rogue Special Mode None Game No. 10 Rogue 4 Adventurer 6 Explorer 0 Win Type - Total 0 Types 0/0/0/0/0/0/0/0/0 Lore% 7 Gallery% 19 Achievement% 16 Wizard Run 0 Options --------- ASCII 0 Keyboard 0 Movement Mouse Keybinds 0 Fullscreen 1 Font 18/X11 Map View 76x50 Tactical HUD 1 Map Filters NONE Filters NONE Steam 1 RUN: 8e1f636c-c7cc-407d-b762-77c36a13807d